Workbook

Sheet S251Outturn201011_TAReport
A3: DEPARTMENT FOR EDUCATION DATA COLLECTION Year 2010-11 TABLE A
C4: LA | G4: Brent | R4: LA No. | U4: 304
C6: Contact | F6: Shelina Merali and Lin Diaby | M6: Email
P7: shelina.merali@brent.gov.uk
C10: Tel No | H10: 2089375336
A13: Spending by Schools | D13: Nursery Schools £ | I13: Primary Schools £ | J13: Secondary Schools £ | N13: Special Schools £ | S13: Total £
A14: (a) | D14: (b) | I14: (c) | J14: (d) | N14: (e) | S14: (f)
A15: EXPENDITURE
A16: 1 Teaching staff (E01) | D16: 1092267 | I16: 58674083 | J16: 60559049 | N16: 5029364 | S16: 125354763
A17: 2 Supply teaching staff (E02) | D17: 9788 | I17: 1394006 | J17: 282864 | N17: 164120 | S17: 1850778
A18: 3 TOTAL TEACHING STAFF | D18: 1102055 | I18: 60068089 | J18: 60841913 | N18: 5193484 | S18: 127205541
A19: 4 Education Support Staff (E03) | D19: 750349 | I19: 19028117 | J19: 8704376 | N19: 3368384 | S19: 31851226
A20: OTHER EMPLOYEE COSTS
A21: 5 Premises staff (E04) | D21: 37076 | I21: 2823451 | J21: 2607256 | N21: 313297 | S21: 5781080
A22: 6 Administrative & clerical staff (E05) | D22: 148806 | I22: 4919134 | J22: 5620234 | N22: 446687 | S22: 11134861
A23: 7 Catering Staff (E06) | D23: 17536 | I23: 273506 | J23: 381600 | N23: 0 | S23: 672642
A24: 8 Cost of other staff (E07) | D24: 69909 | I24: 2316123 | J24: 394523 | N24: 113075 | S24: 2893630
A25: 9 Indirect employee expenses (E08) | D25: 6712 | I25: 345665 | J25: 466188 | N25: 174679 | S25: 993244
A26: 10 Development and training (E09) | D26: 28191 | I26: 839471 | J26: 499977 | N26: 61823 | S26: 1429462
A27: 11 Supply teacher insurance (E10) | D27: 6487 | I27: 449080 | J27: 0 | N27: 29554 | S27: 485121
A28: 12 Staff related insurance (E11) | D28: 635 | I28: 160775 | J28: 55870 | N28: 4152 | S28: 221432
A29: 13 TOTAL OTHER EMPLOYEE COSTS | D29: 315352 | I29: 12127205 | J29: 10025648 | N29: 1143267 | S29: 23611472
A30: RUNNING EXPENSES
A31: 14 Building maintenance and improvement (E12) | D31: 67461 | I31: 4716778 | J31: 3057687 | N31: 541353 | S31: 8383279
A32: 15 Grounds maintenance and improvement (E13) | D32: 6070 | I32: 292217 | J32: 178973 | N32: 19401 | S32: 496661
A33: 16 Cleaning and caretaking (E14) | D33: 45552 | I33: 1127826 | J33: 291542 | N33: 22410 | S33: 1487330
A34: 17 Water and sewerage (E15) | D34: 3865 | I34: 297590 | J34: 173942 | N34: 14785 | S34: 490182
A35: 18 Energy (E16) | D35: 25068 | I35: 1555394 | J35: 1271207 | N35: 132317 | S35: 2983986
A36: 19 Rates (E17) | D36: 34321 | I36: 930988 | J36: 268158 | N36: 0 | S36: 1233467
A37: 20 Other occupation costs (E18) | D37: 14219 | I37: 363851 | J37: 4307390 | N37: 240971 | S37: 4926431
A38: 21 Learning resources (not ICT) (E19) | D38: 55742 | I38: 4114915 | J38: 3465713 | N38: 256020 | S38: 7892390
A39: 22 ICT learning resources (E20) | D39: 28151 | I39: 2509334 | J39: 876222 | N39: 137292 | S39: 3550999
A40: 23 Examination fees (E21) | D40: 0 | I40: 25820 | J40: 1892618 | N40: 8117 | S40: 1926555
A41: 24 Administrative supplies (E22) | D41: 55062 | I41: 3835784 | J41: 1698526 | N41: 260283 | S41: 5849655
A42: 25 Other insurance premiums (E23) | D42: 14325 | I42: 723951 | J42: 657152 | N42: 73921 | S42: 1469349
A43: 26 Special facilities (E24) | D43: 945 | I43: 464881 | J43: 868402 | N43: 17281 | S43: 1351509
A44: 27 Catering supplies (E25) | D44: 101593 | I44: 3893494 | J44: 959631 | N44: 125171 | S44: 5079889
A45: 28 Agency supply teaching staff (E26) | D45: 157038 | I45: 3352669 | J45: 2341077 | N45: 266758 | S45: 6117542
A46: 29 Bought-in professional services - curriculum (E27) | D46: 24815 | I46: 2679662 | J46: 711421 | N46: 459929 | S46: 3875827
A47: 30 Bought-in professional services - other (E28) | D47: 98278 | I47: 3024164 | J47: 1753604 | N47: 237446 | S47: 5113492
A48: 31 Loan interest (E29) | D48: 0 | I48: 48163 | J48: 83664 | N48: 35476 | S48: 167303
A49: 32 Community focused extended school staff (E31) | D49: 1045208 | I49: 699062 | J49: 134250 | N49: 0 | S49: 1878520
A50: 33 Community focused extended school costs (E32) | D50: 228259 | I50: 409053 | J50: 822932 | N50: 0 | S50: 1460244
A51: 34 TOTAL RUNNING EXPENSES | D51: 2005972 | I51: 35065596 | J51: 25814111 | N51: 2848931 | S51: 65734610
A52: 35 TOTAL GROSS EXPENDITURE | D52: 4173728 | I52: 126289007 | J52: 105386048 | N52: 12554066 | S52: 248402849
A53: FUNDING
A54: 36 Funds delegated by the LEA (I01) | D54: 2416868 | I54: 95133321 | J54: 63035938 | N54: 1320848 | S54: 161906975
A55: 37 Funding for sixth form students (I02) | D55: 0 | I55: 0 | J55: 15093316 | N55: 0 | S55: 15093316
A56: 38 SEN funding (Not for special schools) (I03) | D56: 8264 | I56: 7711875 | J56: 4816458 | N56: 10008719 | S56: 22545316
A57: 39 Funding for minority ethnic pupils (I04) | D57: 54396 | I57: 2931556 | J57: 1403945 | N57: 96621 | S57: 4486518
A58: 40 Standards Fund (I05) | D58: 56218 | I58: 6217234 | J58: 7926843 | N58: 335387 | S58: 14535682
A59: 41 Other government grants (I06) | D59: 19411 | I59: 1093182 | J59: 3396324 | N59: 29121 | S59: 4538038
A60: 42 School Standards Grant (SSG) pupil focussed (I14) | D60: 60700 | I60: 4350967 | J60: 3206227 | N60: 181304 | S60: 7799198
A61: 43 Pupil focussed extended school funding and/or grants (I15) | D61: 6945 | I61: 536641 | J61: 53019 | N61: 22714 | S61: 619319
A62: 44 Community focussed extended school funding and/or grants (I16) | D62: 1220579 | I62: 731841 | J62: 795182 | N62: 0 | S62: 2747602
A63: 45 TOTAL FUNDING | D63: 3843381 | I63: 118706617 | J63: 99727252 | N63: 11994714 | S63: 234271964
A64: INCOME
A65: 46 Other grants and payments (I07) | D65: 83800 | I65: 960975 | J65: 779038 | N65: 49440 | S65: 1873253
A66: 47 Income from facilities and services (I08) | D66: 446479 | I66: 4170351 | J66: 2213542 | N66: 733476 | S66: 7563848
A67: 48 Income from catering (I09) | D67: 32547 | I67: 2450204 | J67: 265680 | N67: 43624 | S67: 2792055
A68: 49 Receipts from supply teacher insurance claims (I10) | D68: 0 | I68: 164144 | J68: 37809 | N68: 0 | S68: 201953
A69: 50 Receipts from other insurance claims (I11) | D69: 21027 | I69: 115340 | J69: 25779 | N69: 0 | S69: 162146
A70: 51 Income from contributions to visits etc. (I12) | D70: 1656 | I70: 469917 | J70: 663102 | N70: 4796 | S70: 1139471
A71: 52 Community focussed extended school facilities income (I17) | D71: 8331 | I71: 395203 | J71: 186422 | N71: 0 | S71: 589956
A72: 53 Total income NOT including donations and/or voluntary funds | D72: 593840 | I72: 8726134 | J72: 4171372 | N72: 831336 | S72: 14322682
A73: 54 Donations and/or voluntary funds (I13) | D73: 105 | I73: 1369600 | J73: 1753025 | N73: 44190 | S73: 3166920
A74: 55 TOTAL INCOME INCLUDING DONATIONS AND/OR VOLUNTARY FUNDS | D74: 593945 | I74: 10095734 | J74: 5924397 | N74: 875526 | S74: 17489602
A75: 56 SCHOOLS NET CURRENT EXPENDITURE | D75: 3579783 | I75: 116193273 | J75: 99461651 | N75: 11678540 | S75: 230913247
A76: 57 Capital Expenditure from Revenue - CERA (E30) (Schools) | D76: 78122 | I76: 200412 | J76: 2148622 | N76: 0 | S76: 2427156
A77: BALANCES
A78: Opening balances at 01/04/2010
A79: 58 Committed revenue balance (B01) 2010 | D79: 188139 | I79: 13051320 | J79: 4547408 | N79: 712826 | S79: 18499693
A80: 59 Uncommitted revenue balance (B02) 2010 | D80: 0 | I80: 0 | J80: 0 | N80: 0 | S80: 0
A81: 60 Community focussed extended school revenue balance (B06) 2010 | D81: 96223 | I81: 310103 | J81: 255465 | N81: 0 | S81: 661791
A82: Closing balances at 31/03/2011
A83: 61 Committed revenue balance (B01) 2011 | D83: 381985 | I83: 14925725.11 | J83: 1347341 | N83: 1029001 | S83: 17684052.11
A84: 62 Uncommitted revenue balance (B02) 2011 | D84: 36186 | I84: 419597 | J84: 1292623 | N84: 0 | S84: 1748406
A85: 63 Community focussed extended school revenue balance (B06) 2011 | D85: 51666 | I85: 329031.89 | J85: 279886 | N85: 0 | S85: 660583.89
D86: Teaching Staff | I86: Education Support Staff | J86: Other Employees | N86: Running Expenses | S86: TOTAL EXPENDITURE | X86: Income | Y86: NET Current Expenditure | Z86: Govt. Grants Inside AEF | AA86: Govt. Grants Outside AEF Not including YPLA Grants | AB86: Grants from YPLA | AC86: LA NET Revenue Expenditure | AD86: Inter-authority recoupment included in (j) | AE86: Inter-authority recoupment included in (l) | AF86: Capital Expenditure (Excluding CERA) | AG86: Home to school transport Nursery | AH86: Home to school transport Primary | AI86: Home to school transport Secondary | AJ86: Home to school transport Special
D87: (g) | I87: (h) | J87: (i) | N87: (j) | S87: (k) | X87: (l) | Y87: (m) | Z87: (n) | AA87: (o) | AB87: (p) | AC87: (q) | AD87: (r(i)) | AE87: (r(ii)) | AF87: (s) | AG87: (t) | AH87: (u) | AI87: (v) | AJ87: (w)
A88: SCHOOLS BUDGET
A89: SPENDING BY SCHOOLS (brought forward)
A90: 64 Nursery schools | D90: 1102055 | I90: 750349 | J90: 315352 | N90: 2005972 | S90: 4173728 | X90: 593945 | Y90: 3579783 | Z90: 0 | AA90: 0 | AB90: 0 | AC90: 3579783 | AF90: 0
A91: 65 Primary Schools | D91: 60068089 | I91: 19028117 | J91: 12127205 | N91: 35065596 | S91: 126289007 | X91: 10095734 | Y91: 116193273 | Z91: 0 | AA91: 0 | AB91: 0 | AC91: 116193273 | AF91: 0
A92: 66 Secondary Schools | D92: 60841913 | I92: 8704376 | J92: 10025648 | N92: 25814111 | S92: 105386048 | X92: 5924397 | Y92: 99461651 | Z92: 0 | AA92: 0 | AB92: 19804206 | AC92: 79657445 | AF92: 0
A93: 67 Special Schools | D93: 5193484 | I93: 3368384 | J93: 1143267 | N93: 2848931 | S93: 12554066 | X93: 875526 | Y93: 11678540 | Z93: 0 | AA93: 0 | AB93: 0 | AC93: 11678540 | AF93: 0
A94: 68 TOTAL SCHOOL SPENDING (Excluding CERA line 57) | D94: 127205541 | I94: 31851226 | J94: 23611472 | N94: 65734610 | S94: 248402849 | X94: 17489602 | Y94: 230913247 | Z94: 0 | AA94: 0 | AB94: 19804206 | AC94: 211109041
A95: SPENDING BY LA WITHIN THE SCHOOLS BUDGET (EXCLUDING DELEGATED OR DEVOLVED FUNDING)
A96: 69 Nursery Schools | D96: 0 | I96: 0 | J96: 0 | N96: 0 | S96: 0 | X96: 0 | Y96: 0 | Z96: 0 | AA96: 0 | AB96: 0 | AC96: 0 | AD96: 0 | AE96: 0 | AF96: 0
A97: 70 Primary Schools | D97: 130455.08 | I97: 3994.27 | J97: 729212.97 | N97: 5805817.7 | S97: =SUM(D97:R97) -> 6669480.02 | X97: 1576422.25 | Y97: =S97-X97 -> 5093057.77 | Z97: 205345.16 | AA97: 0 | AB97: 0 | AC97: =Y97-Z97 -> 4887712.61 | AD97: 0 | AE97: 0 | AF97: 0
A98: 71 Secondary Schools | D98: 90564.45 | I98: 2772.9 | J98: 506233.79 | N98: 4030511.23 | S98: =SUM(D98:R98) -> 4630082.37 | X98: 1094382.89 | Y98: =S98-X98 -> 3535699.48 | Z98: 0 | AA98: 0 | AB98: 0 | AC98: =Y98 -> 3535699.48 | AD98: 0 | AE98: 0 | AF98: 0
A99: 72 Special Schools | D99: 2784.86 | I99: 85.27 | J99: 15566.72 | N99: 123938.48 | S99: =SUM(D99:R99) -> 142375.33 | X99: 33652.35 | Y99: =S99-X99 -> 108722.98 | Z99: 0 | AA99: 0 | AB99: 0 | AC99: =Y99 -> 108722.98 | AD99: 0 | AE99: 0 | AF99: 0
A100: 73 Private/voluntary/independent fees for education for Under 5s (Not NMSS) | D100: 0 | I100: 0 | J100: 22994.25 | N100: 4432834.49 | S100: 4455828.74 | X100: 2874043.37 | Y100: 1581785.37 | Z100: 0 | AA100: 0 | AB100: 0 | AC100: 1581785.37
A101: 74 Independent/Non-Maintained schools fees | D101: 0 | I101: 0 | J101: 0 | N101: 9451155.77 | S101: 9451155.77 | X101: 1738792.47 | Y101: 7712363.3 | Z101: 0 | AA101: 0 | AB101: 0 | AC101: 7712363.3
A102: 75 Education out of school | D102: 548324.05 | I102: 6759.02 | J102: 1451747.43 | N102: 3845512.1 | S102: 5852342.6 | X102: 365305 | Y102: 5487037.6 | Z102: 0 | AA102: 0 | AB102: 0 | AC102: 5487037.6 | AD102: 0 | AE102: 0
A103: 76 School Meals/Milk | D103: 0 | I103: 0 | J103: 0 | N103: 221911.37 | S103: 221911.37 | X103: 91391.32 | Y103: 130520.05 | Z103: 0 | AA103: 0 | AB103: 0 | AC103: 130520.05 | AD103: 0 | AE103: 0
A104: 77 Other Support Services : expenditure falling within the definition of the Schools Budget | D104: 0 | I104: 0 | J104: 0 | N104: 0 | S104: 0 | X104: 0 | Y104: 0 | Z104: 0 | AA104: 0 | AB104: 0 | AC104: 0 | AD104: 0 | AE104: 0
A105: 78 TOTAL SCHOOLS BUDGET (excluding CERA) (lines 68 to 77) | D105: =SUM(D94:H104) -> 127977669.4 | I105: =SUM(I94:I104) -> 31864837.46 | J105: =SUM(J94:M104) -> 26337227.16 | N105: =SUM(N94:R104) -> 93646291.14 | S105: =SUM(S94:W104) -> 279826025.2 | X105: =SUM(X94:X104) -> 25263591.65 | Y105: =SUM(Y94:Y104) -> 254562433.6 | Z105: 205345.16 | AA105: 0 | AB105: 19804206 | AC105: =SUM(AC94:AC104) -> 234552882.4 | AD105: 0 | AE105: 0
A106: 79 Capital Expenditure from Revenue (CERA) (Spending by LEA in Schools Budget) | S106: 0 | X106: 0 | Y106: 0 | Z106: 0 | AA106: 0 | AB106: 0 | AC106: 0
A107: 80 SUBTOTAL: CENTRAL EXPENDITURE WITHIN THE SCHOOLS BUDGET (including CERA) (lines 69 to 77 + line 79) | S107: =SUM(S96:W104)+S106 -> 31423176.2 | X107: =SUM(X97:X104)+X106 -> 7773989.65 | Y107: =SUM(Y96:Y104) -> 23649186.55 | Z107: =SUM(Z96:Z104)+Z106 -> 205345.16 | AA107: 0 | AB107: =SUM(AB96:AB104)+AB106 -> 0 | AC107: =SUM(AC96:AC104)+AC106 -> 23443841.39
A108: 81 TOTAL SCHOOLS BUDGET (including CERA) (line 68 + line 80 + line 57 col (f)) | S108: =S94+S107+S76 -> 282253181.2 | X108: =X94+X107+S76 -> 27690747.65 | Y108: =Y94+Y107+S76 -> 256989589.6 | Z108: =Z94+Z107+S76 -> 2632501.16 | AA108: 0 | AB108: =AB107+AB94+S76 -> 22231362 | AC108: =AC107+AC94+S76 -> 236980038.4
A109: LA BUDGET
A110: LA CENTRAL FUNCTIONS
A111: Central Administration
A112: 82 Central Administration | D112: 0 | I112: 0 | J112: 1846986.25 | N112: 6202268.17 | S112: =J112+N112 -> 8049254.42 | X112: 3291255.5 | Y112: =S112-X112 -> 4757998.92 | Z112: 177828.5 | AA112: 0 | AB112: 0 | AC112: =Y112-Z112 -> 4580170.42 | AD112: 0 | AE112: 0
A113: 83 Teacher Development | D113: 0 | I113: 0 | J113: 0 | N113: 0 | S113: 0 | X113: 0 | Y113: 0 | Z113: 0 | AA113: 0 | AB113: 0 | AC113: 0 | AD113: 0 | AE113: 0
A114: 84 HE/FE courses run on behalf of the authority | D114: 0 | I114: 0 | J114: 0 | N114: 0 | S114: 0 | X114: 0 | Y114: 0 | Z114: 0 | AA114: 0 | AB114: 0 | AC114: 0 | AD114: 0 | AE114: 0
A115: 85 PRC, Redundancy, Existing Early Retirement and Pension liabilities costs | D115: 0 | I115: 0 | J115: 0 | N115: 0 | S115: 0 | X115: 0 | Y115: 0 | Z115: 0 | AA115: 0 | AB115: 0 | AC115: 0 | AD115: 0 | AE115: 0
A116: 86 SUB-TOTAL CENTRAL ADMINISTRATION (lines 82 to 85) | D116: =SUM(D112:H115) -> 0 | I116: =SUM(I112:M115) -> 1846986.25 | N116: =SUM(N112:R115) -> 6202268.17 | S116: =SUM(S112:W115) -> 8049254.42 | X116: =SUM(X112:X115) -> 3291255.5 | Y116: 4757998.92 | Z116: 177828.5 | AA116: 0 | AB116: 0 | AC116: 4580170.42
A117: Support & Access
A118: 87 Pupil Support | D118: 0 | I118: 0 | J118: 194043.42 | N118: 1180469.74 | S118: 1374513.16 | X118: 1114759.25 | Y118: 259753.91 | Z118: 0 | AA118: 0 | AB118: 0 | AC118: 259753.91 | AD118: 0 | AE118: 0
A119: 88 Other support services: expenditure falling within the definition of the LEA budget | D119: 0 | I119: 4874965.28 | J119: 613273.81 | N119: 2477314.63 | S119: =I119+N119+J119 -> 7965553.72 | X119: 2353960.23 | Y119: =S119-X119 -> 5611593.49 | Z119: 169896.41 | AA119: 0 | AB119: 0 | AC119: =Y119-Z119 -> 5441697.08 | AD119: 0 | AE119: 0
A120: 89 Home to school transport: SEN transport expenditure | D120: 0 | I120: 0 | J120: 0 | N120: 3186431.24 | S120: =N120 -> 3186431.24 | X120: 292744.43 | Y120: =S120-X120 -> 2893686.81 | Z120: 0 | AA120: 0 | AB120: 0 | AC120: =Y120 -> 2893686.81 | AD120: 0 | AE120: 0 | AG120: 723422 | AH120: 723422 | AI120: 723422 | AJ120: 723421
A121: 90 Home to school transport: other home to school transport expenditure | D121: 0 | I121: 0 | J121: 0 | N121: 7477.38 | S121: =N121 -> 7477.38 | X121: 11233.58 | Y121: =S121-X121 -> -3756.2 | Z121: 0 | AA121: 0 | AB121: 0 | AC121: =Y121 -> -3756.2 | AD121: 0 | AE121: 0 | AG121: -939 | AH121: -939 | AI121: -939 | AJ121: -939
A122: 91 Home to post-16 provision: SEN/ LLDD transport expenditure (aged 16-18) | D122: 0 | I122: 0 | J122: 0 | N122: 0 | S122: 0 | X122: 0 | Y122: 0 | Z122: 0 | AA122: 0 | AB122: 0 | AC122: 0 | AD122: 0 | AE122: 0 | AG122: 0 | AH122: 0 | AI122: 0 | AJ122: 0
A123: 92 Home to post-16 provision: SEN/ LLDD transport expenditure (aged 19-25) | D123: 0 | I123: 0 | J123: 0 | N123: 0 | S123: 0 | X123: 0 | Y123: 0 | Z123: 0 | AA123: 0 | AB123: 0 | AC123: 0 | AD123: 0 | AE123: 0 | AG123: 0 | AH123: 0 | AI123: 0 | AJ123: 0
A124: 93 Home to post-16 provision transport: other home to post-16 transport expenditure | D124: 0 | I124: 0 | J124: 0 | N124: 0 | S124: 0 | X124: 0 | Y124: 0 | Z124: 0 | AA124: 0 | AB124: 0 | AC124: 0 | AD124: 0 | AE124: 0 | AG124: 0 | AH124: 0 | AI124: 0 | AJ124: 0
A125: 94 SUB-TOTAL SUPPORT AND ACCESS (lines 87 to 93) | D125: 0 | I125: =SUM(I118:I124) -> 4874965.28 | J125: =SUM(J118:M124) -> 807317.23 | N125: =SUM(N118:R124) -> 6851692.99 | S125: =SUM(S118:W124) -> 12533975.5 | X125: =SUM(X118:X124) -> 3772697.49 | Y125: 8761278.01 | Z125: 169896.41 | AA125: 0 | AB125: 0 | AC125: 8591381.6 | AD125: 0 | AE125: 0
A126: 95 SUB-TOTAL LA CENTRAL FUNCTIONS (line 86 + line 94) | D126: 0 | I126: 4874965.28 | J126: =J125+I116 -> 2654303.48 | N126: =N125+N116 -> 13053961.16 | S126: =S125+S116 -> 20583229.92 | X126: =SUM(X119:X125) -> 6430635.73 | Y126: =Y125+Y116 -> 13519276.93 | Z126: =Z125+Z116 -> 347724.91 | AA126: =AA125+AA116 -> 0 | AB126: =AB125+AB116 -> 0 | AC126: =AC125+AC116 -> 13171552.02 | AD126: 0 | AE126: 0
A127: ADULT AND COMMUNITY
A128: 96 Other Community Services | D128: 0 | I128: 0 | J128: 0 | N128: 0 | S128: 0 | X128: 0 | Y128: 0 | Z128: 0 | AA128: 0 | AB128: 0 | AC128: 0 | AD128: 0 | AE128: 0
A129: 97 Adult and Community learning | D129: 2597532.72 | I129: 0 | J129: 1085360.9 | N129: 1197147.65 | S129: 4880041.27 | X129: 462359.99 | Y129: 4417681.28 | Z129: 0 | AA129: 4607853.71 | AB129: 0 | AC129: -190172.43 | AD129: 0 | AE129: 0
A130: 98 SUB-TOTAL ADULT AND COMMUNITY (lines 96 + 97) | D130: 2597532.72 | I130: 0 | J130: 1085360.9 | N130: 1197147.65 | S130: 4880041.27 | X130: 462359.99 | Y130: 4417681.28 | Z130: 0 | AA130: 4607853.71 | AB130: 0 | AC130: -190172.43 | AD130: 0 | AE130: 0
A131: 99 TOTAL LA BUDGET (line 95 + line 98) | D131: =D126+D130 -> 2597532.72 | I131: =I125+I130 -> 4874965.28 | J131: =J126+J130 -> 3739664.38 | N131: =N126+N130 -> 14251108.81 | S131: =S126+S130 -> 25463271.19 | X131: =X126+X130 -> 6892995.72 | Y131: 17936958.21 | Z131: 347724.91 | AA131: 4607853.71 | AB131: 0 | AC131: 12981379.59 | AD131: 0 | AE131: 0
A132: 100 TOTAL SPENDING BY LA (excluding CERA) (Schools and LA budget) (lines 69 to 77 + line 98) | D132: =SUM(D96:H104)+D130 -> 3369661.16 | I132: =SUM(I96:I104)+I130 -> 13611.46 | J132: =SUM(J96:M104)+J130 -> 3811116.06 | N132: =SUM(N96:R104)+N130 -> 29108828.79 | S132: =SUM(S96:W104)+S130 -> 36303217.47 | X132: =SUM(X96:X104)+X130 -> 8236349.64 | Y132: 28066867.83 | Z132: 205345.16 | AA132: 4607853.71 | AB132: 0 | AC132: 23253668.96 | AD132: 0 | AE132: 0
A133: 101 Capital Expenditure from Revenue (CERA) (LA) | S133: 0 | X133: 0 | Y133: 0
A134: 102 Capital Expenditure from Revenue (CERA) (Youth & Community) | S134: 0 | X134: 0 | Y134: 0
A135: 103 TOTAL LEA BUDGET (including CERA) (line 99 + line 101 + line 102) | S135: =S131 -> 25463271.19 | X135: =X131 -> 6892995.72 | Y135: =Y131 -> 17936958.21
A136: 104 TOTAL EDUCATION SPENDING (excluding CERA) (lines 78 and 99) | D136: =D131+D105 -> 130575202.2 | I136: =I131+I105 -> 36739802.74 | J136: =J131+J105 -> 30076891.54 | N136: =N131+N105 -> 107897400 | S136: =S131+S105 -> 305289296.4 | X136: =X131+X105 -> 32156587.37 | Y136: 272499391.8 | Z136: 553070.07 | AA136: 4607853.71 | AB136: 19804206 | AC136: 247534262 | AD136: 0 | AE136: 0
A137: 105 TOTAL EDUCATION SPENDING (including CERA) (line 81 + line 103) | S137: =S135+S108 -> 307716452.4 | X137: =X135+X108 -> 34583743.37 | Y137: 274926547.8 | Z137: 2632501.16 | AA137: 0 | AB137: 22231362 | AC137: 236980038.4 | AD137: 0 | AE137: =AE136+AE108 -> 0
D140: NOTE:
D141: Please note that the figures on Table A and Table A1 for the Sn251 10.11 Outurn shown on the Brent website are different from the figures shown on the Department
D142: Of Education (DfE) website, as the figures shown on the Brent website have been updated and are more accurate than the figures on the DfE website,
D143: as the DfE loaded the spreadsheets onto their website, before the updates were completed.
